bitfinex/quotes_ETHUSD_20241109
["timestamp","ask_amount","ask_price","bid_price","bid_amount"]
[1731144617510,0.757,3046.1,3045.1,1.25924643]
[1731144620100,0.757,3046.1,3045.2,11.8]
[1731144620722,0.757,3046.1,3045.3,0.06565458]
[1731144620925,0.757,3046.1,3045.2,11.8]
[1731144621139,0.757,3046.3,3045.3,2.56517107]
[1731144622333,0.58272556,3046.3,3045.4,0.1743]
[1731144623240,0.58272556,3046.3,3045.5,11.8]
[1731144624545,1.25924643,3046.2,3045.5,11.8]
[1731144625237,1.25924643,3046.4,3045.5,11.8]
[1731144625425,0.8243,3046.3,3045.6,1.19743]
[1731144627147,0.8243,3046.0,3045.5,11.8]
[1731144627455,0.01,3046.2,3044.6,0.50712891]
[1731144627456,0.8243,3046.2,3045.6,11.8]
[1731144630382,0.8243,3046.2,3045.6,11.9743]
[1731144630666,0.8243,3046.2,3045.7,1.19743]
[1731144630834,0.8243,3046.2,3045.8,11.8]
[1731144634933,0.8243,3046.2,3045.9,11.8]
[1731144640863,0.8243,3046.2,3046.0,11.8]
[1731144642304,0.55,3046.1,3046.0,11.8]
[1731144644507,0.8243,3046.2,3046.0,12.98]
[1731144644712,3.01,3046.4,3046.0,12.98]
[1731144644713,0.7859,3046.4,3046.0,12.98]
[1731144645109,0.7859,3046.6,3046.0,12.98]
[1731144646918,0.55,3046.5,3046.1,11.8]
[1731144647124,0.55,3046.4,3046.1,11.8]
[1731144650860,1.25924643,3047.4,3046.2,11.8]
[1731144650861,0.01,3047.1,3046.2,11.8]
[1731144651060,0.01,3047.1,3046.1,2.43924643]
[1731144651061,0.7859,3047.0,3046.4,0.1743]
[1731144651426,0.01,3047.1,3046.5,11.8]
[1731144651934,0.7859,3047.2,3046.5,11.8]
[1731144653845,0.55,3047.1,3046.5,11.8]
[1731144654365,0.7859,3047.0,3046.5,11.8]
[1731144654741,0.7859,3047.0,3046.5,12.98]
[1731144655977,0.7859,3047.0,3046.6,11.8]
[1731144656268,0.55,3046.8,3046.3,11.8]
[1731144656646,0.55,3046.6,3046.3,11.8]
[1731144656868,0.55,3046.6,3046.3,12.98]
[1731144659260,0.55,3046.6,3046.3,11.8]
[1731144660557,0.7859,3046.5,3046.3,11.8]
[1731144660758,0.55,3046.4,3046.3,11.8]
[1731144661392,0.55,3046.4,3045.7,11.8]
[1731144661589,0.55,3046.4,3045.8,1.19743]
[1731144662750,0.7859,3046.3,3045.8,1.19743]
[1731144664215,0.7859,3046.3,3044.8,4.70974538]
[1731144664216,0.55,3046.0,3045.9,11.8]
[1731144665988,0.56,3046.1,3045.9,11.8]
[1731144666177,0.761,3046.0,3045.9,11.8]
[1731144666379,1.311,3046.0,3045.9,11.8]
[1731144667600,0.55,3045.9,3045.3,11.8]
[1731144667756,0.55,3045.9,3045.4,13.06309599]
[1731144667963,0.55,3045.9,3045.4,12.99743]
[1731144670205,0.761,3045.8,3045.5,11.8]
[1731144670363,1.311,3045.7,3045.6,11.8]
[1731144670567,5.02525584,3045.7,3045.6,11.8]
[1731144670764,2.02525584,3045.7,3045.6,11.8]
[1731144672990,0.771,3045.9,3045.6,11.8]
[1731144673178,0.01,3046.1,3045.6,11.8]
[1731144673383,0.01,3046.1,3045.7,12.03996019]
[1731144673683,0.01,3046.1,3045.8,11.8]
[1731144676785,0.761,3046.0,3045.8,11.8]
[1731144677421,0.55,3045.9,3045.8,11.8]
[1731144678712,0.56,3045.9,3045.8,11.8]
[1731144679018,0.56,3045.9,3045.3,11.8]
[1731144679435,3.28155835,3045.9,3045.3,11.8]
[1731144679638,0.55,3045.7,3045.3,11.8]
[1731144680330,0.55,3045.5,3045.3,11.8]
[1731144680988,0.56,3045.5,3045.3,11.8]
[1731144681389,0.761,3045.6,3045.3,12.98]
[1731144681628,0.01,3045.7,3045.3,12.98]
[1731144682131,3.761,3045.8,3045.3,12.98]
[1731144682290,0.761,3045.8,3045.3,12.98]
[1731144682490,0.761,3045.8,3045.4,11.8]
[1731144682734,0.761,3045.8,3045.4,13.098]
[1731144683034,0.761,3045.8,3045.4,11.8]
[1731144683724,0.55,3045.7,3045.4,11.8]
[1731144685299,0.01,3045.9,3045.4,11.9743]
[1731144686140,3.794,3046.1,3045.5,0.06566871]
[1731144686436,0.01,3045.6,3045.4,11.8]
[1731144687149,3.794,3046.1,3045.4,12.98]
[1731144687439,0.794,3046.4,3045.5,12.03996019]
[1731144687621,0.01,3046.4,3045.6,11.8]
[1731144687821,0.01,3046.4,3045.8,0.1743]
[1731144688033,0.794,3046.6,3045.8,1.37829519]
[1731144689523,2.72155835,3046.5,3045.8,1.37829519]
[1731144690048,0.01,3046.3,3045.8,0.1743]
[1731144690753,0.01,3046.3,3045.6,11.8]
[1731144691044,0.784,3046.2,3045.6,11.8]
[1731144692957,0.56,3046.1,3045.6,11.8]
[1731144693249,0.01,3045.9,3045.6,11.8]
[1731144693411,0.01,3045.9,3045.7,11.8]
[1731144695333,0.01,3045.9,3045.8,11.8]
[1731144695908,0.01,3046.1,3045.8,11.8]
[1731144696217,0.01,3045.9,3045.8,11.8]
[1731144700437,3.51,3046.1,3045.8,11.8]
[1731144701376,0.7669,3046.0,3045.8,11.8]
[1731144701549,1.46674584,3046.0,3045.8,11.8]
[1731144702675,0.55,3045.9,3045.8,11.8]
[1731144702844,7.03845835,3045.9,3045.8,11.8]
[1731144705275,7.04845835,3045.9,3045.8,7.32019163]
[1731144705444,0.7927,3045.6,3044.7,7.32019163]
[1731144705643,0.02,3045.7,3044.3,0.1743]
[1731144705644,0.55,3044.9,3044.8,7.32019163]
[1731144706437,0.55,3044.9,3044.4,7.32019163]
[1731144706641,0.55,3044.9,3044.5,7.32019163]
[1731144710263,1.25642583,3044.9,3044.5,7.32019163]
[1731144710437,1.25642583,3044.9,3043.9,0.1743]
[1731144710438,3.7927,3044.7,3043.9,0.1743]
[1731144710643,0.55,3044.6,3043.6,0.1743]
[1731144710943,3.0,3044.7,3043.7,0.06569654]
[1731144711140,3.0,3044.7,3043.8,0.1743]
[1731144711383,3.0,3044.7,3043.9,0.0656948]
[1731144712088,0.7927,3044.9,3043.8,0.1743]
[1731144712448,0.55,3044.8,3043.8,0.1743]
[1731144713560,0.55,3044.8,3043.9,0.06569489]
[1731144713767,0.55,3044.8,3043.8,0.1743]
[1731144714997,0.55,3044.8,3043.9,7.32019163]
[1731144715204,0.55,3044.8,3044.1,0.1743]
[1731144716065,0.64268127,3045.2,3044.2,0.06569216]
[1731144716378,0.64268127,3045.2,3044.3,0.1743]
[1731144716576,0.64268127,3045.2,3044.5,0.1743]
[1731144717320,3.51425835,3045.4,3044.5,0.1743]
[1731144717464,3.51425835,3045.4,3044.6,8.06964079]
[1731144717465,3.0,3045.3,3044.6,8.06964079]
[1731144719021,0.55,3045.2,3044.6,8.06964079]
[1731144719164,0.55,3045.2,3044.6,7.32019163]
[1731144720916,0.55,3045.2,3044.7,7.32019163]
[1731144723223,0.8266,3045.1,3044.7,7.32019163]
[1731144724527,3.55,3045.0,3044.7,7.32019163]
[1731144726833,4.19787881,3045.0,3044.4,7.32019163]
[1731144727014,0.55,3044.8,3044.4,7.32019163]
[1731144727735,3.0,3044.7,3044.1,0.1743]
[1731144728020,1.17715583,3044.6,3044.1,7.32019163]
[1731144728628,0.8266,3044.5,3044.1,7.32019163]
[1731144732245,3.54815835,3044.5,3044.1,7.32019163]
[1731144732535,0.55,3044.0,3043.6,7.32019163]
[1731144732840,0.43766,3043.9,3043.6,7.32019163]
[1731144732997,0.55,3044.0,3043.6,7.32019163]
[1731144734039,0.8266,3044.4,3043.6,7.32019163]
[1731144734201,0.8266,3044.4,3043.7,0.1743]
[1731144734202,3.8266,3044.4,3043.7,0.1743]
[1731144734407,3.8266,3044.4,3043.8,0.06570162]
[1731144734616,0.8266,3044.8,3043.9,0.1743]
[1731144734844,0.8266,3044.8,3043.2,0.01]
[1731144734845,0.8266,3045.0,3044.1,0.1743]
[1731144735049,0.8266,3045.0,3044.2,0.06569375]
[1731144735348,2.15676142,3045.0,3044.2,0.06569375]
[1731144735506,2.15676142,3045.0,3044.1,0.23999194]
[1731144735930,2.15676142,3045.0,3044.1,0.1743]
[1731144736127,5.15676142,3045.0,3044.1,0.1743]
[1731144736875,0.55,3044.9,3044.1,0.23999318]
[1731144737067,3.55,3044.9,3044.1,0.99601166]
[1731144738041,3.55,3044.9,3044.1,0.93031848]
[1731144738258,3.55,3044.9,3044.1,0.1743]
[1731144738642,2.72155835,3044.8,3044.1,0.1743]
[1731144738847,3.0,3044.7,3044.2,7.32019163]
[1731144740361,0.55,3044.6,3044.2,7.32019163]
[1731144740542,3.55,3044.4,3044.2,7.32019163]
[1731144742875,0.8266,3044.7,3044.2,7.32019163]
[1731144743088,0.55,3044.6,3044.2,7.32019163]
[1731144743285,0.65113651,3044.5,3044.2,7.49449163]
[1731144743470,0.55,3044.6,3044.2,7.49449163]
[1731144744751,0.55,3044.6,3044.2,0.1743]
[1731144745182,1.25981584,3044.6,3044.2,0.1743]
[1731144745393,0.55,3044.6,3044.2,0.1743]
[1731144745592,0.7722,3045.4,3044.4,0.1743]
[1731144745889,0.0571236,3045.7,3044.6,0.1743]
[1731144745890,2.72155835,3045.6,3044.6,0.1743]
[1731144746105,0.34937584,3045.5,3044.8,0.1743]
[1731144747345,3.34937584,3045.5,3044.8,0.1743]
[1731144748089,0.55,3045.4,3044.8,0.1743]
[1731144748259,0.55,3045.4,3044.7,7.32019163]
[1731144750710,3.55,3045.2,3044.8,7.32019163]
[1731144750849,0.62715583,3045.1,3044.8,7.32019163]
[1731144752560,3.55,3044.9,3044.8,7.32019163]
[1731144752773,3.55,3044.9,3044.1,0.1743]
[1731144752774,0.55,3044.8,3044.2,7.32019163]
[1731144756567,0.55,3044.8,3044.3,7.32019163]
[1731144757257,0.7722,3044.7,3044.3,7.32019163]
[1731144757680,3.55,3044.6,3044.2,7.32019163]
[1731144758172,4.3222,3044.3,3044.2,7.32019163]
[1731144758603,4.3222,3044.3,3043.6,7.32019163]
[1731144758762,4.3222,3044.3,3043.7,7.32019163]
[1731144758963,0.55,3044.1,3043.7,7.32019163]
[1731144762465,0.55,3044.1,3043.3,7.32019163]
[1731144762661,0.55,3044.2,3043.4,0.06570934]
[1731144763867,4.43599657,3044.3,3043.5,0.1743]
[1731144763868,0.7722,3044.3,3043.5,0.1743]
[1731144764067,0.7949,3044.6,3043.6,0.06570329]
[1731144764270,0.7949,3044.6,3043.7,0.1743]
[1731144764461,1.43803138,3044.6,3043.7,0.1743]
[1731144764660,4.15958973,3044.6,3043.7,0.1743]
[1731144765303,3.0,3044.5,3043.8,0.0657003]
[1731144765602,3.55,3044.5,3043.7,0.1743]
[1731144767287,4.36418097,3044.5,3043.7,0.1743]
[1731144767680,4.3449,3044.2,3043.4,0.1743]
[1731144768362,4.3449,3044.2,3043.5,7.32019163]
[1731144769876,3.7949,3044.5,3043.6,0.06570701]
[1731144770199,3.7949,3044.5,3043.5,7.32019163]
[1731144770200,3.7949,3044.5,3043.7,0.73858986]
[1731144770520,3.7949,3044.5,3043.5,7.32019163]
[1731144770521,3.0,3044.2,3043.5,7.32019163]
[1731144771205,0.7949,3044.5,3043.5,7.32019163]
[1731144771414,3.7949,3044.5,3043.5,7.38589761]
[1731144771702,3.7949,3044.5,3043.6,0.75601976]
[1731144772270,3.7949,3044.5,3043.7,7.56019244]
[1731144772807,0.55,3044.4,3043.7,7.56019244]
[1731144774699,3.27155835,3044.4,3043.7,7.32019163]
[1731144774886,3.0,3044.3,3043.7,7.32019163]
[1731144776028,0.55,3044.2,3043.7,7.32019163]
[1731144776205,0.7891,3044.1,3043.7,7.32019163]
[1731144777334,0.7891,3044.1,3043.8,7.32019163]
[1731144777827,0.55,3044.0,3043.8,7.32019163]
[1731144778203,0.7891,3044.1,3043.8,7.32019163]
[1731144778408,3.7891,3044.3,3043.8,7.32019163]
[1731144778727,0.55,3044.5,3043.9,0.1743]
[1731144782193,0.55,3044.5,3043.8,7.32019163]
[1731144783102,0.55,3044.3,3043.9,7.32019163]
[1731144783636,3.55,3044.3,3043.9,7.32019163]
[1731144785545,0.55,3044.1,3043.9,7.32019163]
[1731144785738,1.03823,3044.1,3043.9,7.32019163]
[1731144788500,0.55,3044.4,3043.9,7.32019163]
[1731144789025,0.55,3044.4,3043.8,0.1743]
[1731144789716,0.55,3044.4,3043.6,0.1743]
[1731144790312,3.0,3044.3,3043.6,0.1743]
[1731144790628,0.55,3044.2,3043.6,0.1743]
[1731144790828,3.0,3044.3,3043.6,0.1743]
[1731144790829,0.355,3044.1,3043.6,0.1743]
[1731144791005,0.55,3044.0,3043.6,0.1743]
[1731144792043,0.55,3044.0,3043.1,0.1743]
[1731144792338,0.55,3044.0,3043.2,0.06570937]
[1731144793501,0.55,3044.0,3043.1,0.1743]
[1731144793703,0.55,3044.0,3043.2,0.74944916]
[1731144794721,0.55,3044.0,3043.2,0.81516115]
[1731144795042,0.55,3044.0,3043.3,7.32019163]
[1731144795337,0.7823,3043.8,3043.3,7.32019163]
[1731144795705,0.55,3043.7,3043.3,7.32019163]
[1731144799546,0.55,3043.5,3043.3,7.32019163]
[1731144799852,0.55,3043.5,3042.9,0.1743]
[1731144800204,0.7823,3043.4,3043.0,7.32019163]
[1731144801907,1.21553,3043.4,3043.0,7.32019163]
[1731144802144,2.72155835,3043.7,3043.0,7.32019163]
[1731144802145,0.7823,3043.7,3043.0,7.32019163]
[1731144802511,0.7823,3044.0,3043.1,0.24001208]
[1731144803643,0.55,3043.9,3043.1,0.1743]
[1731144804073,1.2116229,3043.9,3043.1,0.1743]
[1731144804345,1.2116229,3043.9,3043.2,0.74944916]
[1731144806854,1.2116229,3043.9,3043.3,7.32019163]
[1731144807350,4.2116229,3043.9,3043.3,7.32019163]
[1731144808414,2.72155835,3044.3,3043.4,7.3859079]
[1731144808638,0.7579,3044.3,3043.5,8.23308242]
[1731144809747,0.67036536,3044.1,3043.5,8.23308242]
[1731144811348,0.55,3044.0,3043.5,7.32019163]
[1731144811552,0.7579,3043.9,3043.5,7.32019163]
[1731144812837,0.7579,3043.9,3043.6,7.32019163]
[1731144813031,0.55,3044.0,3043.6,7.32019163]
[1731144815264,0.01,3044.8,3043.7,0.24000927]
[1731144815265,3.7579,3044.5,3043.7,0.24000927]
[1731144815467,3.7579,3044.5,3043.7,0.24000229]
[1731144815468,0.7579,3044.5,3043.7,0.24000229]
[1731144815766,3.3,3044.9,3043.8,0.1743]
[1731144815767,0.7579,3044.8,3043.8,0.1743]
[1731144815970,1.43584584,3044.8,3043.9,0.1743]
[1731144816321,2.08452218,3044.8,3044.0,0.0656961]
[1731144816749,1.43584584,3044.8,3044.0,0.0656961]
[1731144816934,1.43584584,3044.8,3043.9,0.1743]
[1731144816935,0.55,3044.7,3043.9,0.1743]
[1731144818725,0.55,3044.7,3044.0,7.32019163]
[1731144824156,4.71541757,3044.7,3044.0,7.32019163]
[1731144824738,4.71541757,3044.7,3044.1,7.32019163]
[1731144825057,4.71541757,3044.7,3044.2,7.32019163]
[1731144828027,3.55,3044.7,3044.3,0.1743]
[1731144828363,0.65130237,3045.1,3044.4,7.32019163]
[1731144828569,0.65130237,3045.1,3044.5,0.1743]
[1731144829566,1.25806651,3044.8,3044.5,0.1743]
[1731144830345,1.25806651,3044.6,3044.4,7.32019163]
[1731144831474,0.55,3044.8,3044.4,7.32019163]
[1731144832273,3.55,3044.6,3044.4,7.32019163]
[1731144832436,1.25761849,3044.5,3044.4,7.32019163]
[1731144833379,0.55,3044.5,3044.4,7.32019163]
[1731144833563,0.55,3044.5,3043.9,7.32019163]
[1731144839478,0.55,3044.5,3044.0,7.32019163]
[1731144843288,0.7815,3044.4,3044.0,7.32019163]
[1731144843489,0.55,3044.3,3044.0,7.32019163]
[1731144843786,0.40578849,3044.2,3044.0,7.32019163]
[1731144845056,1.3315,3044.1,3044.0,7.32019163]
[1731144845355,1.3315,3044.1,3043.5,7.32019163]
[1731144845564,3.0,3044.0,3043.5,7.32019163]
[1731144845761,3.0,3044.0,3043.6,7.32019163]
[1731144848072,0.55,3043.9,3043.5,7.32019163]
[1731144848305,3.0,3044.0,3043.5,7.32019163]
[1731144848502,0.01,3044.9,3043.5,7.32019163]
[1731144848503,3.0,3044.3,3043.5,8.06964079]
[1731144848818,0.55,3044.2,3043.5,7.32019163]
[1731144849120,3.55,3044.0,3043.5,7.32019163]
[1731144849309,3.55,3044.0,3043.6,0.1743]
[1731144849621,0.55,3044.0,3043.6,0.1743]
[1731144851387,1.80891944,3044.0,3043.7,7.32019163]
[1731144851579,4.80891944,3044.0,3043.7,7.32019163]
[1731144851977,3.7815,3044.3,3043.7,8.06964079]
[1731144852185,3.0,3044.6,3043.7,7.32019163]
[1731144852385,0.55,3043.9,3043.7,7.32019163]
[1731144852727,1.80891944,3043.8,3043.7,7.32019163]
[1731144854090,1.80891944,3043.8,3043.3,7.32019163]
[1731144855226,4.25891944,3043.6,3043.3,7.32019163]
[1731144855413,1.25891944,3043.6,3043.3,7.32019163]
[1731144855733,3.55,3043.3,3042.6,7.38590779]
[1731144856027,3.55,3043.3,3042.7,7.32019163]
[1731144856028,1.25891944,3043.1,3042.7,7.32019163]
[1731144856181,3.55,3043.3,3042.7,7.32019163]
[1731144856182,4.80891944,3043.3,3042.7,7.32019163]
[1731144858428,1.25891944,3043.1,3042.7,7.32019163]
[1731144858630,1.25891944,3042.9,3042.7,7.32019163]
[1731144858819,1.25891944,3042.9,3042.3,0.1743]
[1731144858820,1.25891944,3042.9,3042.4,7.32019163]
[1731144860995,0.55,3042.8,3042.4,7.32019163]
[1731144861207,4.3666,3042.8,3042.4,7.32019163]
[1731144861513,1.25891944,3042.7,3042.4,7.32019163]
[1731144862329,1.25891944,3042.5,3042.4,7.32019163]
[1731144865044,2.46561138,3042.5,3041.6,7.32019163]
[1731144865218,2.46561138,3042.5,3041.5,0.1743]
[1731144865219,0.55,3042.4,3041.7,7.32019163]
[1731144865421,1.25891944,3042.1,3041.7,7.32019163]
[1731144866549,1.25891944,3041.9,3041.7,7.32019163]
[1731144867850,1.25891944,3042.1,3041.7,7.32019163]
[1731144868154,3.55,3041.8,3041.3,0.1743]
[1731144868362,3.55,3041.8,3041.4,7.32019163]
[1731144868662,3.55,3041.8,3041.4,8.06964079]
[1731144869858,0.7808,3042.5,3041.5,0.1743]
[1731144870152,1.25891944,3042.3,3041.6,7.32019163]
[1731144870359,1.25891944,3042.3,3041.7,0.75602464]
[1731144870918,0.7808,3041.8,3041.6,7.32019163]
[1731144871249,0.7808,3041.8,3041.0,7.32019163]
[1731144871250,1.25891944,3041.7,3041.0,7.32019163]
[1731144871733,1.25891944,3041.7,3041.1,7.32019163]
[1731144873065,0.55,3041.7,3041.1,7.32019163]
[1731144875119,0.55,3041.7,3041.2,7.32019163]
[1731144875644,0.55,3042.0,3041.4,0.1743]
[1731144876958,0.55,3042.3,3041.5,0.06575404]
[1731144877923,3.38693863,3042.8,3041.6,0.1743]
[1731144878118,3.38693863,3042.8,3041.2,8.06221079]
[1731144878119,0.7808,3042.7,3041.8,0.1743]
[1731144878365,0.7808,3042.7,3041.9,8.0762149]
[1731144879663,0.55,3042.6,3041.9,8.0762149]
[1731144882958,0.7808,3042.3,3041.9,7.32019163]
[1731144883163,0.55,3042.2,3041.9,7.32019163]
[1731144883841,0.55,3042.2,3041.6,7.32019163]
[1731144889144,3.8057,3042.1,3041.7,7.32019163]
[1731144889457,0.8057,3042.1,3041.8,7.32019163]
[1731144889631,0.55,3042.3,3041.8,7.49449163]
[1731144892672,0.8057,3042.4,3041.8,8.24394079]
[1731144892870,0.8057,3042.4,3041.9,7.32019163]
[1731144893465,2.06586609,3042.4,3041.9,7.32019163]
[1731144898689,2.06586609,3042.4,3042.0,7.32019163]
[1731144899888,1.3598,3042.1,3042.0,7.32019163]
[1731144900197,4.97679661,3042.1,3042.0,7.32019163]
[1731144900500,4.3598,3042.1,3042.0,7.32019163]
[1731144901691,1.3598,3042.1,3042.0,7.32019163]
[1731144902085,0.8098,3042.4,3042.0,7.32019163]
[1731144902407,3.55,3042.3,3042.0,7.32019163]
[1731144903580,2.06996609,3042.4,3042.0,7.32019163]
[1731144904654,2.06996609,3042.4,3042.1,7.32019163]
[1731144904906,1.26016609,3042.2,3042.1,7.32019163]
[1731144905913,1.26016609,3042.4,3042.1,7.32019163]
[1731144906113,0.55,3042.8,3042.3,0.1743]
[1731144906319,0.64481574,3043.3,3042.4,0.06573521]
[1731144906483,2.04706609,3043.3,3042.5,7.49449163]
[1731144906804,2.04706609,3043.3,3042.6,0.75602268]
[1731144907004,2.04706609,3043.3,3042.6,0.82174824]
[1731144907170,2.04706609,3043.3,3042.7,7.32019163]
[1731144907375,0.7869,3043.3,3042.7,7.32019163]
[1731144908418,0.55,3043.2,3042.7,7.32019163]
[1731144908788,3.55,3043.2,3042.7,7.32019163]
[1731144909683,4.25656078,3043.2,3042.7,7.32019163]
[1731144909888,0.55,3042.8,3042.7,7.32019163]
[1731144910622,0.55,3042.8,3042.4,7.32019163]
[1731144912831,2.72870775,3042.7,3042.0,0.1743]
[1731144913027,4.3369,3042.6,3042.0,0.1743]
[1731144913233,4.3369,3042.6,3042.0,7.32019163]
[1731144913234,2.72870775,3042.4,3042.0,7.32019163]
[1731144913398,3.55,3042.3,3042.0,7.32019163]
[1731144914124,0.7869,3042.2,3042.0,7.32019163]
[1731144914422,3.0,3042.0,3041.6,7.32019163]
[1731144914724,3.0,3042.0,3041.7,7.32019163]
[1731144915098,3.0,3042.0,3041.4,7.32019163]
[1731144915325,0.55,3042.1,3041.4,8.06964079]
[1731144915515,0.55,3042.1,3041.5,7.32019163]
[1731144917031,0.7869,3042.2,3041.5,7.32019163]
[1731144917188,0.7869,3042.2,3041.6,0.80696408]
[1731144917834,0.7869,3042.5,3041.7,0.1743]
[1731144917989,3.51560775,3042.7,3041.8,0.0657405]
[1731144918327,4.16644477,3043.0,3042.0,0.1743]
[1731144919532,3.0,3042.9,3042.0,0.1743]
[1731144921598,0.55,3042.8,3042.0,0.1743]
[1731144922529,0.55,3042.8,3042.1,7.32019163]
[1731144924730,3.55,3042.6,3042.1,7.32019163]
[1731144925536,0.55,3042.6,3042.2,0.1743]
[1731144925699,0.55,3042.6,3042.2,0.92374916]
[1731144926924,0.55,3042.6,3042.2,0.1743]
[1731144927942,0.55,3042.8,3042.2,0.24003744]
[1731144928302,0.55,3042.8,3042.3,7.32019163]
[1731144929537,2.72870775,3042.4,3041.4,6.97705764]
[1731144929702,3.0,3042.0,3041.4,6.97705764]
[1731144929900,3.0,3042.0,3041.5,6.97705764]
[1731144930536,3.32787077,3042.3,3041.5,6.97705764]
[1731144930708,0.55,3042.2,3041.5,6.97705764]
[1731144930912,3.32787077,3042.3,3041.5,6.97705764]
[1731144931111,0.55,3042.2,3041.5,6.97705764]
[1731144931924,1.28937785,3042.2,3041.5,6.97705764]
[1731144932240,1.28937785,3042.2,3041.6,0.08660117]
[1731144933636,1.28937785,3042.2,3041.5,6.97705764]
[1731144934211,1.28937785,3042.2,3041.6,6.97705764]
[1731144934412,1.28937785,3042.2,3041.2,6.97705764]
[1731144934413,2.72870775,3042.1,3041.2,6.97705764]
[1731144934754,3.55,3042.0,3041.2,6.97705764]
[1731144934904,3.55,3042.0,3041.3,0.0874727]
[1731144935104,0.7872,3041.9,3041.3,0.0874727]
[1731144935301,0.55,3041.8,3041.3,0.0874727]
[1731144935701,0.55,3041.8,3041.2,6.97705764]
[1731144935906,0.55,3041.8,3041.4,0.08742178]
[1731144936132,0.55,3041.8,3041.2,6.97705764]
[1731144936326,0.55,3041.8,3041.5,0.08445224]
[1731144936534,0.55,3041.8,3041.2,6.97705764]
[1731144936742,4.05437908,3041.8,3041.6,0.08441561]
[1731144936907,0.55,3041.8,3041.2,6.97705764]
[1731144937260,0.55,3041.8,3041.7,0.08154864]
[1731144937545,0.55,3041.8,3041.2,6.97705764]
[1731144937707,0.7872,3041.7,3041.2,6.97705764]
[1731144937908,0.55,3041.6,3041.3,0.07057919]
[1731144938149,0.55,3041.6,3041.2,6.97705764]
[1731144938465,1.31159078,3041.6,3040.9,6.97705764]
[1731144938809,1.31159078,3041.6,3041.0,0.06833197]
[1731144939241,1.31159078,3041.6,3041.0,7.04538961]
[1731144939432,0.7872,3041.5,3041.0,7.04538961]
[1731144943118,0.7872,3041.5,3041.1,6.97705764]
[1731144943325,0.7872,3041.5,3041.1,7.04324252]
[1731144944180,1.22092,3041.5,3041.1,7.04324252]
[1731144944444,3.55,3041.4,3041.1,7.04324252]
[1731144945250,3.54580775,3041.2,3041.1,7.04324252]
[1731144945452,7.09580775,3041.2,3041.1,0.06618488]
[1731144945615,7.09580775,3041.2,3040.4,6.97705764]
[1731144945616,0.55,3041.0,3040.4,6.97705764]
[1731144945818,0.55,3041.0,3040.5,6.97705764]
[1731144949139,0.55,3041.0,3040.6,6.97705764]
[1731144949341,3.0,3041.1,3040.6,6.97705764]
[1731144949522,3.8171,3041.6,3040.8,0.1743]
[1731144950033,0.66707864,3041.4,3040.8,0.1743]
[1731144950746,3.39578639,3041.4,3040.8,0.1743]
[1731144950953,3.0,3041.3,3040.8,0.1743]
[1731144952292,0.8171,3041.6,3040.9,0.06576402]
[1731144952550,0.8171,3041.8,3040.9,0.11573248]
[1731144952755,0.8171,3041.8,3041.0,7.15135764]
[1731144952956,0.8171,3041.8,3041.0,7.20128946]
[1731144953133,1.48674256,3041.8,3041.0,7.99293198]
[1731144953859,0.55,3041.7,3041.0,7.99293198]
[1731144954741,0.55,3041.7,3041.0,7.94293198]
[1731144958032,0.55,3041.7,3041.1,6.97705764]
[1731144958438,0.55,3041.7,3041.2,0.04985854]
[1731144959163,1.48674256,3041.8,3041.2,0.04985854]
[1731144960523,3.0,3041.9,3041.3,0.1243]
[1731144960751,3.0,3042.2,3041.4,6.97705764]
[1731144960957,0.8171,3042.3,3041.5,0.1243]
[1731144961157,0.8171,3042.3,3041.5,7.1510223]
[1731144961467,0.8171,3041.9,3041.5,7.0267223]
[1731144962647,0.55,3042.1,3041.5,7.0267223]
[1731144962848,1.32622881,3042.1,3041.5,7.0267223]
[1731144963167,1.32622881,3042.1,3041.5,6.97705764]
[1731144963378,1.32622881,3042.1,3041.6,0.04952623]
[1731144963548,1.32622881,3042.1,3041.6,7.02658387]
[1731144963875,3.7756,3042.5,3041.7,0.19005241]
[1731144964185,3.7756,3042.5,3041.7,0.1243]
[1731144964331,3.7756,3042.5,3041.8,0.04945297]
[1731144964537,3.0,3042.2,3041.8,0.04945297]
[1731144965667,3.57287077,3042.2,3041.8,0.04945297]
[1731144966035,0.7756,3042.1,3041.8,0.04945297]
[1731144966237,0.7756,3042.1,3041.6,6.97705764]
[1731144966968,0.55,3042.0,3041.7,6.97705764]
[1731144967192,0.55,3042.0,3041.7,7.0248418]
[1731144968570,1.03984708,3042.0,3041.7,7.0248418]
[1731144968747,0.98984708,3042.0,3041.7,7.0248418]
[1731144968942,0.5,3042.0,3041.7,7.0248418]
[1731144972852,0.5,3042.0,3041.7,0.04778416]
[1731144973236,0.5,3042.0,3041.3,6.97705764]
[1731144973436,0.5,3042.0,3041.8,0.04774217]
[1731144973680,0.5,3042.0,3041.3,6.97705764]
[1731144973849,0.5,3042.0,3041.9,0.04609146]
[1731144974053,0.92756,3042.0,3041.3,6.97705764]
[1731144974382,0.5,3042.0,3041.3,6.97705764]
[1731144974779,0.5,3042.0,3041.4,0.0446619]
[1731144975345,0.5,3042.0,3041.4,0.11041643]
[1731144975648,3.0,3042.2,3041.5,0.1243]
[1731144975864,0.7756,3042.4,3041.5,0.1243]
[1731144976065,6.80430775,3042.6,3041.6,0.1243]
[1731144976438,6.80430775,3042.6,3041.7,0.04459131]
[1731144976654,3.3,3042.6,3041.8,0.1243]
[1731144976852,3.25,3042.6,3041.8,0.1243]
[1731144977965,3.0,3042.5,3041.8,0.1243]
[1731144978741,3.0,3042.5,3041.9,6.97705764]
[1731144979058,3.0,3042.5,3042.0,0.82200576]
[1731144979385,3.0,3042.5,3042.1,0.04444125]